bitfinex-derivatives/quotes_ETHF0:USTF0_20220106
["timestamp","ask_amount","ask_price","bid_price","bid_amount"]
[1641435410911,3.19893701,3508.2,3507.7,2.00479]
[1641435411112,3.19893701,3508.2,3507.8,0.132394]
[1641435411514,4.33671806,3508.8,3507.8,0.132394]
[1641435411515,3.07537365,3508.4,3507.9,0.88782369]
[1641435411713,3.57568037,3509.2,3508.2,1.5]
[1641435411913,4.80809003,3509.5,3508.7,12.17]
[1641435412112,4.80809003,3509.5,3508.9,12.17]
[1641435412315,4.80809003,3509.5,3508.9,13.67]
[1641435412612,4.80809003,3509.5,3508.2,1.42424782]
[1641435412613,4.80809003,3509.5,3508.2,1.5]
[1641435412813,4.80809003,3509.5,3509.4,2.00479]
[1641435413313,1.5,3510.3,3509.4,2.00479]
[1641435413714,1.5,3510.0,3508.2,1.0]
[1641435413916,1.5,3509.7,3508.2,1.0]
[1641435414417,1.5,3509.9,3508.2,1.0]
[1641435414618,1.5,3509.7,3508.2,1.0]
[1641435414817,2.00479,3508.6,3508.2,1.0]
[1641435415019,2.00479,3508.6,3508.3,1.08318508]
[1641435415317,2.00479,3508.6,3508.4,0.229991]
[1641435415520,2.00479,3508.6,3508.5,0.132394]
[1641435415816,2.00479,3509.0,3508.5,0.132394]
[1641435416116,1.5,3508.6,3508.3,0.95079108]
[1641435416318,1.5,3508.4,3508.2,1.0]
[1641435416717,2.00479,3508.3,3508.2,1.0]
[1641435417218,3.42989029,3508.3,3508.2,1.0]
[1641435418219,2.62989029,3508.3,3508.2,1.0]
[1641435421023,4.51413486,3508.3,3507.6,0.132394]
[1641435422423,1.25617736,3507.7,3507.6,0.132394]
[1641435422823,1.88424457,3508.3,3507.6,12.532385]
[1641435423025,1.88424457,3508.3,3507.7,12.17]
[1641435423326,1.88424457,3508.3,3507.8,0.132394]
[1641435424424,1.88424457,3508.4,3507.9,0.78905222]
[1641435424625,4.457e-05,3508.4,3508.0,0.132394]
[1641435424828,2.3549309,3508.7,3508.3,4.00958]
[1641435425124,2.3549309,3508.7,3508.4,0.132394]
[1641435425325,2.3549309,3508.7,3508.5,1.53248938]
[1641435425827,2.3549309,3508.7,3508.6,0.132394]
[1641435426433,2.3549309,3509.2,3508.6,0.132394]
[1641435426832,2.3549309,3509.2,3509.1,4.00958]
[1641435427733,2.3549309,3509.5,3509.2,1.23081069]
[1641435427932,3.13990786,3509.8,3509.4,1.5]
[1641435428134,3.92169637,3510.1,3509.6,1.5]
[1641435428335,3.92169637,3510.1,3509.8,1.5]
[1641435428533,3.92169637,3510.1,3509.4,13.67]
[1641435428733,3.92169637,3510.1,3510.0,4.00958]
[1641435429434,3.92169637,3510.1,3510.0,4.239571]
[1641435429635,5.81386601,3510.3,3510.0,2.00479]
[1641435429836,1.5,3510.3,3509.1,0.95079108]
[1641435430236,1.5,3510.6,3509.1,0.95079108]
[1641435430939,2.00479,3510.1,3509.3,2.00479]
[1641435432235,1.00479,3510.1,3509.3,2.00479]
[1641435433036,1.42438577,3509.8,3509.3,2.00479]
[1641435433936,1.89032839,3509.4,3509.3,2.00479]
[1641435434136,1.89032839,3509.4,3509.3,2.234781]
[1641435435637,0.52760676,3509.7,3509.3,2.234781]
[1641435435839,2.36863784,3509.5,3509.3,2.234781]
[1641435437040,2.36863784,3509.5,3509.3,2.00479]
[1641435437240,1.92464145,3509.4,3508.8,0.95079108]
[1641435437441,1.42482211,3509.4,3508.8,0.95079108]
[1641435437641,1.42482211,3509.4,3508.7,1.0]
[1641435437642,0.5,3509.6,3508.7,1.95079108]
[1641435437844,1.42475106,3508.9,3508.7,1.95079108]
[1641435438243,0.5,3509.3,3508.7,1.95079108]
[1641435438446,1.42475512,3508.9,3508.7,1.95079108]
[1641435438646,0.5,3509.3,3508.7,1.95079108]
[1641435438945,0.5,3509.3,3508.7,1.0]
[1641435438946,0.52760676,3508.8,3508.7,1.0]
[1641435439145,0.52760676,3508.8,3508.7,1.229991]
[1641435440247,2.42644931,3508.8,3508.7,1.229991]
[1641435440947,2.42644931,3508.8,3508.7,3.234781]
[1641435441647,0.52760676,3508.8,3508.7,3.234781]
[1641435442047,0.52760676,3508.8,3508.7,4.234781]
[1641435442648,1.89884255,3508.9,3508.8,0.47239324]
[1641435442849,1.89884255,3508.9,3508.8,1.47239324]
[1641435443951,1.89884255,3509.0,3508.8,1.47239324]
[1641435444151,1.89884255,3509.0,3508.9,0.229991]
[1641435444552,1.89884255,3509.0,3508.8,1.47239324]
[1641435444752,1.89884255,3509.0,3508.8,0.47239324]
[1641435445153,1.89884255,3509.0,3508.8,0.70238424]
[1641435445353,1.89884255,3509.0,3508.8,1.47239324]
[1641435445956,1.89884255,3509.0,3508.9,1.0]
[1641435446155,1.42458869,3509.3,3508.9,1.229991]
[1641435446156,2.3687466,3509.1,3508.9,1.229991]
[1641435446358,2.3687466,3509.1,3509.0,1.0]
[1641435446756,2.3687466,3509.1,3508.9,0.229991]
[1641435447156,3.79333529,3509.3,3508.9,0.229991]
[1641435447356,3.79333529,3509.3,3509.0,1.0]
[1641435447856,2.3687466,3509.3,3509.1,0.229991]
[1641435448260,2.3687466,3509.2,3509.1,0.229991]
[1641435448457,2.3687466,3509.2,3509.0,1.0]
[1641435448658,1.4246719,3509.1,3509.0,1.0]
[1641435448861,4.3735366,3509.2,3509.0,1.0]
[1641435449060,2.00479,3509.2,3509.0,1.0]
[1641435449259,1.42473076,3509.1,3509.0,1.0]
[1641435449658,1.92473076,3509.1,3509.0,1.0]
[1641435449858,1.42473076,3509.1,3508.4,0.95079108]
[1641435450458,14.67479,3509.2,3508.4,0.95079108]
[1641435450861,2.00479,3508.5,3508.4,0.95079108]
[1641435451060,4.36911169,3508.5,3507.8,0.95079108]
[1641435451362,1.9250678,3508.1,3507.8,0.95079108]
[1641435451560,0.5,3508.1,3507.8,0.95079108]
[1641435451759,4.36911169,3508.5,3507.8,0.95079108]
[1641435451760,4.36911169,3508.5,3507.9,0.229991]
[1641435451959,4.36911169,3508.5,3507.9,1.229991]
[1641435452160,1.4250678,3508.1,3507.9,1.0]
[1641435452761,1.4250678,3508.1,3508.0,0.229991]
[1641435452964,2.36432169,3508.4,3508.0,0.229991]
[1641435453161,2.36432169,3508.4,3508.2,1.0]
[1641435453662,2.36432169,3508.4,3508.3,0.229991]
[1641435454063,2.00479,3508.5,3508.3,0.229991]
[1641435454261,2.00479,3508.5,3508.4,1.0]
[1641435456565,2.00479,3508.5,3508.4,13.17]
[1641435457165,2.36432169,3508.9,3508.4,13.17]
[1641435457366,2.36432169,3509.1,3508.8,1.0]
[1641435457565,2.36432169,3509.1,3509.0,1.0]
[1641435458468,2.36432169,3509.1,3509.0,1.229991]
[1641435458669,5.79375111,3509.2,3509.0,1.229991]
[1641435458870,5.79375111,3509.2,3509.0,0.3882486]
[1641435459269,5.79375111,3509.2,3509.0,0.1582576]
[1641435459468,5.79375111,3509.2,3509.0,0.3882486]
[1641435459668,3.78896111,3509.2,3509.0,0.3882486]
[1641435459868,2.36432169,3509.2,3509.0,0.3882486]
[1641435460071,2.169e-05,3509.2,3509.1,0.132394]
[1641435460269,3.92169637,3509.7,3509.1,13.802394]
[1641435460671,3.92169637,3509.7,3509.2,13.01831827]
[1641435460870,3.92169637,3509.7,3509.6,4.1678376]
[1641435461071,3.92169637,3509.7,3509.6,4.3978286]
[1641435461270,0.80586196,3509.8,3509.6,18.0678286]
[1641435461473,4.31386601,3509.9,3509.7,0.132394]
[1641435461671,4.31386601,3509.9,3509.8,0.1582576]
[1641435461870,4.31386601,3509.9,3509.8,0.3882486]
[1641435462272,4.31386601,3509.9,3509.8,12.5582486]
[1641435462474,1.89610778,3510.0,3509.8,12.5582486]
[1641435462872,1.89610778,3510.0,3509.9,0.132394]
[1641435463775,1.89610778,3510.0,3509.9,1.0640152]
[1641435463977,1.89610778,3510.1,3509.9,1.0640152]
[1641435464174,1.89610778,3510.1,3510.0,0.3882486]
[1641435464875,1.89610778,3510.1,3510.0,2.3930386]
[1641435465074,1.89610778,3510.2,3510.0,2.234781]
[1641435465475,1.89610778,3510.2,3510.0,2.00479]
[1641435465675,3.23785018,3510.2,3510.0,2.00479]
[1641435465875,1.89610778,3510.2,3510.0,2.00479]
[1641435466075,1.89610778,3510.2,3509.8,0.9669939]
[1641435466478,1.3417424,3510.5,3510.0,1.0]
[1641435466876,2.00479,3510.3,3510.0,1.0]
[1641435467478,1.42433302,3510.1,3510.0,1.0]
[1641435467676,2.00479,3510.3,3510.0,1.229991]
[1641435468075,2.00479,3510.3,3510.0,1.3882486]
[1641435468279,2.00479,3510.3,3510.1,0.132394]
[1641435468676,2.00479,3510.3,3510.2,0.3882486]
[1641435470278,2.00479,3510.3,3510.2,0.229991]
[1641435470580,2.00479,3510.3,3510.2,0.3882486]
[1641435473181,2.00479,3510.3,3510.1,1.0]
[1641435475181,1.42422956,3510.2,3510.1,0.33667363]
[1641435475381,2.00479,3510.3,3510.1,0.33667363]
[1641435476384,2.37569503,3510.2,3510.1,0.33667363]
[1641435476686,2.37569503,3510.2,3510.1,0.49493123]
[1641435476883,2.37569503,3510.2,3510.1,0.72492223]
[1641435477084,2.37569503,3510.2,3510.1,0.33667363]
[1641435477483,1.42423565,3510.2,3510.1,0.94075283]
[1641435477684,1.00479,3510.3,3510.1,1.09901043]
[1641435477883,1.00479,3510.3,3510.1,0.94075283]
[1641435478691,1.00479,3510.3,3510.2,0.229991]
[1641435478886,2.9066508,3510.3,3510.1,0.33667363]
[1641435479985,2.9066508,3510.3,3510.1,0.56666463]
[1641435480889,1.42426608,3510.2,3510.1,0.33667363]
[1641435481489,1.00479,3510.3,3510.1,0.33667363]
[1641435481892,1.00479,3510.3,3510.2,0.3882486]
[1641435482494,2.37569503,3510.4,3510.1,0.33667363]
[1641435482698,1.90150514,3510.2,3510.1,0.33667363]
[1641435483596,1.90150514,3510.2,3510.1,0.56666463]
[1641435484397,1.90150514,3510.2,3510.1,0.33667363]
[1641435484597,1.90150514,3510.2,3510.1,0.56666463]
[1641435484895,2.29013223,3510.2,3510.1,0.33667363]
[1641435485399,2.29013223,3510.2,3510.1,0.56666463]
[1641435486397,1.29013223,3510.2,3510.1,0.56666463]
[1641435486800,0.38862709,3510.2,3510.1,0.56666463]
[1641435487201,0.38862709,3510.2,3510.1,0.229991]
[1641435487602,3.79991851,3510.4,3510.2,0.94804654]
[1641435487801,3.79991851,3510.4,3510.3,0.3882486]
[1641435488201,3.79991851,3510.4,3510.3,0.1582576]
[1641435488802,3.79991851,3510.4,3510.2,0.94804654]
[1641435489002,1.3417424,3510.3,3509.9,2.00479]
[1641435489203,1.3417424,3510.0,3509.8,0.96658527]
[1641435489401,2.37569503,3510.4,3509.8,0.96658527]
[1641435489604,2.37569503,3510.4,3508.9,0.1582576]
[1641435489605,1.42469423,3509.9,3508.9,0.1582576]
[1641435490002,1.42469423,3509.9,3509.1,0.1582576]
[1641435490203,1.3417424,3510.0,3509.1,0.1582576]
[1641435490403,1.42461304,3509.4,3508.6,1.11698661]
[1641435490803,1.42461304,3509.4,3508.7,0.132394]
[1641435491003,1.42461304,3509.4,3508.6,0.95872901]
[1641435491004,1.42461304,3509.4,3509.0,2.00479]
[1641435491206,1.42461304,3509.4,3509.1,0.1582576]
[1641435491406,1.42461304,3509.4,3509.0,2.00479]
[1641435491805,1.42451766,3509.7,3509.2,0.1582576]
[1641435492005,1.42451766,3509.7,3509.0,2.00479]
[1641435492207,2.00479,3509.8,3509.0,2.1630476]
[1641435492405,1.42454404,3509.6,3509.0,2.00479]
[1641435492604,1.42454404,3509.6,3509.2,0.1582576]
[1641435492807,1.42454404,3509.6,3509.5,0.1582576]
[1641435493006,1.42454404,3509.6,3509.5,0.3882486]
[1641435493405,1.42433708,3510.1,3509.5,0.3882486]
[1641435494107,1.42433708,3510.1,3509.5,0.229991]
[1641435494306,1.3417424,3510.0,3509.0,3.40836897]
[1641435494711,1.3417424,3510.0,3509.0,3.56662657]
[1641435494906,1.42433708,3510.1,3509.6,0.1582576]
[1641435495204,1.42433708,3510.1,3509.4,0.1582576]
[1641435495205,2.00479,3510.0,3509.4,0.1582576]
[1641435495404,2.00479,3510.0,3509.7,0.1582576]
[1641435496306,2.00479,3510.0,3509.3,0.1582576]
[1641435496707,32.0359,3510.7,3509.9,0.1582576]
[1641435496907,32.0359,3510.7,3510.5,0.1582576]
[1641435497310,1.8918242,3511.1,3510.5,0.229991]
[1641435497508,1.3417424,3511.0,3510.4,2.00479]
[1641435498610,1.3417424,3511.1,3510.4,2.00479]
[1641435499011,1.3417424,3511.1,3510.7,0.1582576]
[1641435499712,1.42409773,3510.8,3510.7,0.1582576]
[1641435500311,1.42409773,3510.8,3510.7,0.3882486]
[1641435500510,1.42409773,3510.8,3510.7,0.1582576]
[1641435501012,2.60415358,3511.1,3510.7,0.1582576]
[1641435501211,2.70957596,3511.1,3510.7,0.05283522]
[1641435501411,1.26241118,3511.1,3510.4,2.00479]
[1641435501611,1.44716478,3510.8,3510.4,2.00479]
[1641435501813,1.26241118,3511.1,3510.4,2.00479]
[1641435502012,1.26241118,3511.1,3510.7,0.05283522]
[1641435502212,1.26241118,3511.1,3510.9,0.05283522]
[1641435502415,1.26241118,3511.1,3511.0,0.229991]
[1641435503313,4.13342631,3511.3,3511.0,0.229991]
[1641435503513,2.70957596,3511.3,3511.0,0.229991]
[1641435503713,2.70957596,3511.3,3510.9,2.00479]
[1641435503913,1.42391523,3511.2,3510.9,2.00479]
[1641435504214,2.70957596,3511.3,3510.9,2.00479]
[1641435504614,1.42399228,3511.0,3510.9,2.00479]
[1641435504814,1.42399228,3511.0,3510.9,2.05762522]
[1641435505017,1.42399228,3511.0,3510.9,2.28761622]
[1641435505215,2.87115706,3511.0,3509.3,0.05283522]
[1641435505416,0.44716478,3510.8,3509.1,1.05283522]
[1641435505616,0.44716478,3510.8,3509.5,1.05283522]
[1641435505817,1.42436751,3510.1,3508.9,32.23691156]
[1641435506117,0.44716478,3510.8,3508.8,31.03091156]
[1641435506317,1.42432085,3510.2,3508.9,1.37155032]
[1641435506517,0.44716478,3510.8,3509.7,1.05283522]
[1641435507016,0.44716478,3510.8,3509.4,1.5]
[1641435507217,2.00479,3510.6,3509.5,12.17]
[1641435507417,1.26241118,3510.8,3510.1,1.05283522]
[1641435507618,1.26241118,3510.8,3510.2,1.18522922]
[1641435507816,1.26241118,3510.8,3510.2,1.05283522]
[1641435508216,1.26241118,3510.8,3510.3,0.132394]
[1641435508416,1.42396389,3511.0,3510.3,0.132394]
[1641435508619,1.26241118,3511.2,3510.3,0.132394]
[1641435508818,1.42420928,3510.4,3510.3,0.132394]
[1641435509020,1.26241118,3511.2,3510.3,0.362385]
[1641435509221,1.42408353,3510.8,3510.3,2.367175]
[1641435510021,1.42408353,3510.8,3510.3,2.137184]
[1641435510222,0.44716478,3511.0,3510.3,2.137184]
[1641435510420,0.44716478,3511.0,3510.4,1.0]
[1641435510821,2.00479,3511.1,3510.4,1.0]
[1641435512026,2.00479,3511.1,3510.5,0.132394]
[1641435512224,1.42408556,3510.7,3510.5,0.132394]
[1641435512624,1.26241118,3510.9,3510.5,0.132394]
[1641435513328,1.42412206,3510.7,3510.5,0.132394]
[1641435513525,1.42412206,3510.7,3510.6,0.229991]
[1641435513725,1.42412206,3510.7,3510.5,0.132394]
[1641435513925,1.26241118,3511.0,3510.6,1.05283522]
[1641435514227,1.42408556,3510.7,3510.6,1.05283522]
[1641435514428,1.42408556,3510.7,3510.6,1.28282622]
[1641435515128,1.42408556,3510.7,3510.6,1.05283522]
[1641435515330,1.42408556,3510.7,3510.6,1.28282622]
[1641435515528,1.26241118,3511.0,3510.6,1.28282622]
[1641435515927,1.26241118,3511.0,3510.7,0.132394]
[1641435516127,1.26241118,3511.0,3510.8,0.229991]
[1641435516327,2.00479,3511.1,3510.8,0.229991]
[1641435516528,2.00479,3511.1,3510.9,0.132394]
[1641435516727,2.00479,3511.1,3510.4,0.57304885]
[1641435516728,3.95242522,3511.0,3510.4,0.57304885]
[1641435516929,3.95242522,3511.0,3510.5,0.1323]
[1641435517527,3.37937637,3511.0,3510.5,0.1323]
[1641435517728,2.00479,3511.1,3510.5,0.1323]
[1641435519127,2.137184,3511.1,3510.5,0.1323]
[1641435520427,2.137184,3511.1,3511.0,1.0]
[1641435521028,3.56126956,3511.1,3511.0,1.0]
[1641435521229,2.137184,3511.1,3511.0,1.0]
[1641435521431,3.56126956,3511.1,3511.0,1.0]
[1641435521928,3.56126956,3511.1,3511.0,1.229991]
[1641435522128,3.56126956,3511.1,3511.0,1.0]
[1641435522929,2.137184,3511.1,3511.0,1.0]
[1641435523730,2.137184,3511.1,3511.0,0.16622747]
[1641435523930,3.637184,3511.1,3509.8,0.95866556]
[1641435524132,1.5,3510.6,3509.8,0.95866556]
[1641435524332,0.132394,3510.5,3509.8,0.95866556]
[1641435524633,1.42443446,3510.1,3509.8,0.95866556]
[1641435525039,0.132394,3510.0,3509.8,0.95866556]
[1641435525234,2.00479,3509.9,3509.8,0.95866556]
[1641435525433,1.00479,3509.9,3509.8,0.95866556]
[1641435526033,1.00479,3509.9,3509.6,1.27821156]
[1641435526334,1.137184,3509.9,3509.7,0.229991]
[1641435526533,1.137184,3509.9,3509.4,0.1323]
[1641435526934,1.137184,3509.9,3509.1,0.95866556]
[1641435527636,1.908877,3509.6,3509.3,0.95866556]
[1641435527839,1.908877,3509.6,3509.4,0.229991]
[1641435528837,7.1e-05,3509.8,3509.4,0.229991]
[1641435529038,3.39088625,3509.9,3509.4,0.229991]
[1641435529239,2.38609625,3509.8,3509.5,0.132394]
[1641435529441,2.38609625,3509.8,3509.6,0.229991]
[1641435529939,1.00479,3509.9,3509.6,0.229991]
[1641435530138,1.00479,3509.9,3509.7,0.132394]
[1641435530338,1.00479,3509.9,3509.8,0.229991]
[1641435531440,9e-05,3509.9,3509.8,0.229991]
[1641435532842,0.3179389,3509.9,3509.8,0.229991]
[1641435534244,0.3179389,3509.9,3509.4,1.20703087]
[1641435535444,1.26794236,3509.7,3509.4,1.20703087]
[1641435535643,1.26794236,3509.7,3509.5,0.229991]
[1641435535844,1.26794236,3509.7,3509.4,1.20703087]
[1641435537346,1.26794236,3509.7,3509.5,0.229991]
[1641435537546,1.74242612,3509.9,3509.5,0.229991]
[1641435538147,1.74242612,3509.9,3509.4,1.20703087]
[1641435538848,1.26813079,3509.6,3509.4,1.20703087]
[1641435539047,1.26813079,3509.6,3509.5,0.229991]
[1641435539447,1.26813079,3509.6,3509.4,1.20703087]
[1641435539849,1.26813079,3509.6,3509.4,1.43702187]
[1641435540149,1.42457722,3509.9,3509.4,1.43702187]
[1641435540447,9e-05,3509.9,3509.5,0.132394]
[1641435541452,2.00479,3510.0,3509.5,0.132394]
[1641435541649,3.80155644,3510.3,3509.5,0.132394]
[1641435542050,1.42435737,3510.3,3509.5,0.132394]
[1641435542456,2.92435737,3510.3,3509.5,0.132394]
[1641435542651,2.92435737,3510.3,3508.9,4.46345556]
[1641435542652,1.42435737,3510.3,3508.9,2.96345556]
[1641435542951,1.42476527,3509.2,3508.9,0.95866556]
[1641435543151,1.42476527,3509.2,3508.8,1.58508335]
[1641435543353,3.42955527,3509.2,3508.8,1.58508335]
[1641435543753,2.00479,3509.2,3508.8,1.58508335]
[1641435544552,1.42484038,3509.1,3508.8,1.58508335]
[1641435545351,2.00479,3508.9,3508.8,1.58508335]
[1641435545552,3.42979891,3508.9,3508.5,1.92851956]
[1641435545751,3.42979891,3508.9,3507.5,64.47042203]
[1641435545752,1.5,3508.6,3507.5,64.47042203]
[1641435545952,1.5,3508.6,3507.5,1.60742203]
[1641435546363,3.42979891,3508.9,3507.5,1.60742203]
[1641435546561,15.59979891,3508.9,3507.5,1.60742203]
[1641435546763,3.42979891,3508.9,3507.5,1.60742203]
[1641435546964,3.50479,3508.9,3507.5,1.60742203]
[1641435547164,1.42513685,3508.3,3507.3,3.93330956]
[1641435547366,2.00479,3508.1,3507.3,3.93330956]
[1641435547567,2.00479,3508.1,3507.4,0.132394]
[1641435548767,2.00479,3508.1,3507.3,2.00479]
[1641435551670,2.00479,3508.1,3507.6,1.28945679]
[1641435553872,3.90640033,3508.1,3507.5,1.28945679]
[1641435554371,3.90640033,3508.1,3507.5,2.92185079]
[1641435554572,3.90640033,3508.1,3507.6,1.42179353]
[1641435554772,3.90640033,3508.1,3507.6,1.55418753]
[1641435555373,2.00479,3508.1,3507.6,2.71125032]
[1641435557573,1.27127905,3507.9,3507.8,1.28945679]
[1641435557773,1.27127905,3507.9,3507.8,1.51944779]
[1641435558175,1.27127905,3507.9,3507.8,1.28945679]
[1641435558776,1.27127905,3507.9,3507.8,1.51944779]
[1641435558973,2.00479,3508.1,3507.8,1.51944779]
[1641435559173,2.00479,3508.1,3507.7,1.28945679]
[1641435560477,2.26546031,3508.0,3507.6,0.96714401]
[1641435561776,0.0322455,3507.9,3507.6,0.96714401]
[1641435561977,1.5,3507.8,3507.4,1.8939218]
[1641435562176,1.5,3507.6,3507.4,1.8939218]
[1641435562577,1.45789435,3507.5,3507.4,1.8939218]
[1641435562976,1.45789435,3507.5,3507.4,1.28945679]
[1641435563379,1.45789435,3507.5,3507.0,0.8059261]
[1641435563380,3.46268435,3507.5,3507.0,1.28945679]
[1641435563777,0.0322455,3507.4,3507.0,1.28945679]
[1641435564378,1.42565291,3507.1,3507.0,1.28945679]
[1641435564780,1.5,3507.4,3507.0,1.28945679]
[1641435564978,1.42565291,3507.1,3507.0,1.28945679]
[1641435565180,0.03225017,3507.3,3507.0,1.28945679]
[1641435565378,14.03384998,3507.4,3506.6,1.28945679]
[1641435565379,2.00479,3507.1,3506.6,1.28945679]
[1641435565580,3.43044291,3507.1,3506.6,1.28945679]
[1641435565979,1.42586432,3506.7,3506.6,1.28945679]
[1641435566178,1.53225251,3507.0,3506.6,1.28945679]
[1641435566380,1.5,3507.0,3506.6,1.28945679]
[1641435566679,1.5,3506.7,3505.7,2.00479]
[1641435567082,0.03225518,3506.6,3505.7,2.00479]
[1641435567485,1.42609613,3506.0,3505.7,2.00479]
[1641435567980,2.00479,3506.2,3505.7,2.00479]
[1641435568583,0.03225933,3506.1,3505.7,2.00479]
[1641435568785,3.43078852,3506.2,3505.7,2.00479]
[1641435568983,3.43078852,3506.2,3505.1,2.00479]
[1641435569385,2.00479,3505.7,3505.1,2.00479]
[1641435570083,2.00479,3505.7,3504.8,0.8076801]
[1641435570284,1.42635447,3505.3,3504.0,63.2522]
[1641435570586,1.42635447,3505.3,3503.7,1.61179554]
[1641435570784,1.42635447,3505.3,3503.4,1.92851956]
[1641435570986,1.5,3504.3,3503.4,1.92851956]
[1641435571186,1.5,3504.2,3503.4,1.92851956]
[1641435571390,2.00479,3503.5,3503.3,1.61179554]
[1641435571885,2.00479,3503.5,3503.3,1.97218054]
[1641435572086,1.42702005,3503.7,3503.3,1.97218054]
[1641435572288,1.42675537,3504.4,3503.3,1.97218054]
[1641435572486,1.42675537,3504.4,3503.3,0.362385]
[1641435572786,31.522,3505.2,3503.3,0.362385]
[1641435572987,30.022,3505.2,3503.3,0.362385]
[1641435573189,1.42669024,3504.5,3503.3,0.362385]
[1641435573490,3.43148024,3504.5,3503.7,2.00479]
[1641435573689,13.67907429,3513.8,3504.1,1.5]
[1641435573889,62.4712,3506.4,3504.3,1.5]
[1641435574088,62.4712,3506.4,3504.1,0.5948]
[1641435574089,62.4712,3506.4,3504.2,31.9495]
[1641435574289,0.03226586,3505.5,3504.3,1.5]
[1641435574491,0.03226586,3506.3,3504.2,31.9495]
[1641435574689,62.4712,3506.4,3504.2,31.9495]
[1641435574991,0.03226186,3506.2,3505.0,1.5]
[1641435575190,0.03226186,3506.3,3505.5,1.5]
[1641435575390,0.03226186,3506.1,3505.6,0.132394]
[1641435575590,2.00479,3505.7,3504.9,2.00479]
[1641435575789,2.00479,3505.7,3505.0,0.132394]
[1641435576189,2.00479,3505.7,3504.9,0.84324416]
[1641435576390,0.0322632,3505.6,3504.5,2.00479]
[1641435577289,2.00479,3505.7,3504.6,1.06469536]
[1641435577489,2.00479,3505.2,3504.6,1.06469536]
[1641435577890,2.00479,3505.2,3504.6,1.19708936]
[1641435578692,2.00479,3505.2,3504.6,1.06469536]
[1641435579993,1.5,3504.8,3497.6,8.8676613]
[1641435580196,1.42675944,3504.3,3502.3,1.42675944]
[1641435580396,1.42675944,3504.3,3502.7,1.5]
[1641435580595,0.03226917,3504.7,3502.5,1.5]
[1641435580796,31.6625,3505.1,3503.0,1.12666191]
[1641435580995,1.42675944,3504.3,3503.0,1.12666191]
[1641435581194,0.03227123,3504.6,3503.0,1.12666191]
[1641435581396,1.42675944,3504.3,3503.0,1.12666191]
[1641435581596,2.00479,3503.4,3503.0,1.12666191]
[1641435581795,2.00479,3503.4,3503.1,0.132394]
[1641435581996,2.00479,3503.4,3503.2,0.229991]
[1641435582198,2.00479,3503.4,3503.3,0.132394]
[1641435582396,2.00479,3503.8,3503.3,0.132394]
[1641435587100,2.00479,3503.8,3503.1,2.00479]
[1641435587502,2.00479,3503.2,3502.4,0.95567695]
[1641435587801,3.4320178,3503.2,3502.4,0.95567695]
[1641435588301,3.4320178,3503.2,3502.5,0.132394]
[1641435588701,2.00479,3503.2,3502.4,0.95567695]
[1641435588902,2.00479,3503.2,3502.5,0.132394]
[1641435589104,3.43202187,3503.2,3502.5,0.132394]
[1641435589302,3.43202187,3503.2,3501.6,15.13046695]
[1641435589501,3.43202187,3503.2,3501.8,1.23106762]
[1641435589502,2.00479,3502.6,3501.8,1.23106762]
[1641435589704,2.00479,3502.6,3502.2,1.5]
[1641435589905,1.42688159,3504.0,3502.6,12.17]
[1641435590204,29.9419,3504.3,3502.5,1.5]
[1641435590404,29.9419,3504.3,3502.8,1.5]
[1641435590608,29.9419,3504.3,3502.3,1.5]
[1641435590806,29.9419,3504.3,3502.4,12.17]
[1641435591006,31.36869202,3504.3,3502.4,12.17]
[1641435591408,31.36869202,3504.3,3502.5,1.2479778]
[1641435591606,31.36869202,3504.3,3503.7,2.00479]
[1641435592007,1.42679202,3504.3,3503.7,2.00479]
[1641435592207,1.42662103,3504.7,3503.7,2.137184]
[1641435592406,2.00479,3504.8,3503.7,3.49025891]
[1641435593209,0.03227333,3504.7,3503.7,2.137184]
[1641435593707,0.03227333,3504.7,3504.3,2.00479]
[1641435594007,0.51715134,3504.6,3504.3,2.00479]
[1641435594207,2.42323869,3504.6,3504.3,2.00479]
[1641435595207,1.42676352,3504.4,3504.3,2.00479]
[1641435596207,2.42323869,3504.5,3504.1,0.95567695]
[1641435596408,0.03227452,3504.4,3504.1,0.95567695]
[1641435596607,1.42690603,3504.2,3504.1,0.95567695]
[1641435597009,1.42690603,3504.2,3503.9,1.27391674]
[1641435597211,3.33299338,3504.2,3503.8,1.56075524]
[1641435597710,1.5,3503.9,3503.8,5.524e-05]
[1641435598010,2.92704245,3503.9,3503.2,1.59279492]
[1641435598210,1.5,3503.6,3503.2,1.59279492]
[1641435598411,1.42726854,3503.3,3503.2,1.59279492]
[1641435598710,1.42726854,3503.3,3503.0,2.73519659]
[1641435598910,1.42726854,3503.3,3503.1,0.229991]
[1641435599709,1.42726854,3503.3,3503.2,0.229991]
[1641435599910,1.90608735,3504.2,3503.2,0.229991]
[1641435600410,1.90608735,3503.8,3503.2,0.229991]
[1641435600612,1.90608735,3503.8,3503.3,0.132394]
[1641435601611,1.90608735,3503.8,3503.7,2.00479]
[1641435601813,1.90608735,3504.3,3503.1,5.14924303]
[1641435602011,1.42691417,3504.0,3503.1,3.93330956]
[1641435602212,1.90608735,3504.3,3503.1,3.93330956]
[1641435602416,1.42703838,3503.7,3503.1,3.93330956]
[1641435602617,0.0322759,3504.2,3503.1,3.93330956]
[1641435602818,1.42709744,3503.5,3503.1,3.93330956]
[1641435603020,1.42709744,3503.5,3503.1,2.00479]
[1641435603218,1.90608735,3504.0,3503.1,2.00479]
[1641435603619,1.42712595,3503.4,3503.1,2.00479]
[1641435604318,2.00479,3503.6,3503.1,2.00479]
[1641435604723,3.43187115,3503.6,3503.1,2.00479]
[1641435605124,2.00479,3503.6,3503.1,2.00479]
[1641435605322,1.42711781,3503.5,3503.1,2.00479]
[1641435605821,2.00479,3503.6,3503.1,2.00479]
[1641435606021,2.00479,3503.6,3503.2,0.132394]
[1641435606224,2.00479,3503.6,3503.1,2.00479]
[1641435606422,1.42717076,3503.3,3501.9,0.76242116]
[1641435606623,1.42744171,3503.2,3501.4,30.1217]
[1641435607020,1.42744171,3503.2,3501.9,1.5]
[1641435607221,1.42744171,3503.2,3501.6,1.5]
[1641435607622,2.00479,3503.1,3502.3,2.00479]
[1641435608023,1.42744171,3503.2,3502.3,2.00479]
[1641435608624,1.42744171,3503.2,3502.4,0.132394]
[1641435609224,2.00479,3503.6,3502.4,0.132394]
[1641435609624,2.00479,3503.6,3502.7,2.00479]